Cogmind - Beta 12 @@@ ROGUE MODE // 2023.05.09 @ 15:04:15 Player: kawyua Result: Destroyed by H-66 Slayer with Heavy Assault Rifle Performance ------------- Evolutions (5) 2500 Regions Visited (11) 2200 Robots Destroyed (194) 970 Value Destroyed (7843) 7843 Prototype IDs (32) 640 Alien Tech Used (0) 0 Bonus (2792) 2792 TOTAL SCORE: 16945 Bonus ------- High Alert Combat Kills 968 Follower Combat Kills 631 Entered Garrisons 200 Used RIF Installer 500 Entered DSFs 500 Aligned with FarCom 300 Friendly Fire -307 Cogmind --------- Core Integrity 0/1000 Matter 155/300 Energy 36/100 System Corruption 12% Temperature Cool (0) Movement Core (50) Location -5/Factory Parts ------- > --- POWER (1) -------- (None) > --- PROPULSION (2) --- (None) > --- UTILITY (10) ----- Relay Coupler [Sentry] (9) > --- WEAPON (4) ------- Power Maul > --- INVENTORY (5) ---- Improved Signal Interpreter Particle Charger Relay Coupler [NC] (22) Relay Coupler [NC] (22) Peak State ------------ > --- POWER ------------ Fission Core > --- PROPULSION ------- Armored Medium Treads Compact Wheel > --- UTILITY ---------- Huge Storage Unit Improved Targeting Computer Advanced Targeting Computer Kinecellerator Transmission Jammer Hardened Heavy Armor Plating Medium Reactive Plating Shield Generator Relay Coupler [NC] > --- WEAPON ----------- Cooled Particle Cannon Heavy Machine Gun Enhanced Gauss Cannon Power Maul > --- INVENTORY -------- Light Angular Momentum Engine Fission Core Compact Wheel Compact Wheel Improved Cooling System Huge Storage Unit Superbattery High-capacity Matter Pod Phase Shifter Heavy Armor Plating Authchip [Device] Relay Coupler [NC] Relay Coupler [NC] Relay Coupler [Grunt] Relay Coupler [Grunt] Relay Coupler [Sentry] Relay Coupler [Heavy] Relay Coupler [Heavy] Plasma Cannon Cooled Particle Cannon Autogun Gauss Rifle Heavy Rocket Launcher Remote Datajack [Rating: 70] Favorites ----------- Power Reinforced Deuterium Engine Engine Reinforced Deuterium Engine Power Core Fission Core Propulsion Compact Wheel Treads Armored Treads Leg Aluminum Leg Wheel Compact Wheel Utility Improved Targeting Computer Device Transmission Jammer Storage Huge Storage Unit Processor Improved Targeting Computer Hackware Relay Coupler [NC] Protection Medium Armor Plating Weapon Cooled Particle Cannon Energy Gun Particle Gun Energy Cannon Cooled Particle Cannon Ballistic Gun Gauss Rifle Ballistic Cannon Enhanced Gauss Cannon Launcher Grenade Launcher Special Weapon Remote Datajack Impact Weapon Power Maul Build | -11 -10 -9 -9 -9 -8 -8 -7 -7 -6 -6 -5 ------- Run | Jun Mat Mat Min Exi Min Mat Fac Gar Fac DSF Fac Slots Evolved 10 | . . 2 . . . 2 2 . 2 . 2 Power . | . . . . . . . . . . . . Propulsion . | . . . . . . . . . . . . Utility 8 | . . 2 . . . 1 1 . 2 . 2 Weapon 2 | . . . . . . 1 1 . . . . Parts Attached 243 | 4 11 50 23 3 6 45 32 20 1 7 41 Power 17 | . 1 4 2 . 1 3 3 . . 1 2 Engine 13 | . 1 4 1 . . 3 3 . . . 1 Core 4 | . . . 1 . 1 . . . . 1 1 Reactor . | . . . . . . . . . . . . Propulsion 97 | 2 4 30 13 . 3 25 10 3 . 1 6 Treads 45 | 1 1 13 8 . 2 12 5 2 . 1 . Leg 2 | 1 1 . . . . . . . . . . Wheel 50 | . 2 17 5 . 1 13 5 1 . . 6 Hover . | . . . . . . . . . . . . Flight . | . . . . . . . . . . . . Utility 57 | 1 3 7 2 3 1 10 3 8 1 2 16 Device 18 | . . 1 1 1 . 4 1 3 . 2 5 Storage 5 | 1 1 . 1 1 . 1 . . . . . Processor 7 | . . 1 . 1 1 2 . 2 . . . Hackware 5 | . . . . . . . . 2 . . 3 Protection 22 | . 2 5 . . . 3 2 1 1 . 8 Artifact . | . . . . . . . . . . . . Weapon 72 | 1 3 9 6 . 1 7 16 9 . 3 17 Energy Gun 6 | . . 3 1 . 1 . . . . 1 . Energy Cannon 9 | . . . . . . 2 4 . . . 3 Ballistic Gun 34 | 1 2 5 3 . . 4 8 6 . 2 3 Ballistic Cannon 4 | . . . . . . . . . . . 4 Launcher 5 | . . 1 2 . . . 1 . . . 1 Special Weapon 11 | . 1 . . . . 1 2 3 . . 4 Impact Weapon 3 | . . . . . . . 1 . . . 2 Slashing Weapon . | . . . . . . . . . . . . Piercing Weapon . | . . . . . . . . . . . . Special Melee Weapon . | . . . . . . . . . . . . Unidentified Prototypes 3 | . . 1 . . . . 2 . . . . Parts Lost 57 | . 1 5 8 . 1 1 2 4 . 1 34 Power 3 | . . . 2 . . . . . . . 1 Propulsion 10 | . . . 4 . . . . 1 . . 5 Utility 24 | . 1 2 1 . . 1 . 1 . . 18 Weapon 20 | . . 3 1 . 1 . 2 2 . 1 10 Highest Loss Streak 18 | . 1 1 4 . 1 1 1 2 . 1 18 To Critical Strikes . | . . . . . . . . . . . . Average Slot Usage (%) 96 | . 88 99 97 100 99 94 99 99 93 92 90 Engine 6 | . 14 11 3 11 3 6 7 7 6 5 . Core 1 | . . . 7 . 7 2 . . . . 4 Treads 3 | . 3 7 1 . 9 2 . 5 6 6 1 Wheel 13 | . 19 14 20 22 12 15 14 8 6 6 8 Device 10 | . . 2 13 21 7 4 15 15 13 13 15 Storage 8 | . 14 11 16 11 11 9 7 7 6 6 4 Processor 12 | . . 10 11 11 25 19 15 15 13 13 3 Hackware 2 | . . . . . . . . 1 6 6 10 Protection 8 | . 6 19 . . . 7 6 5 6 6 12 Energy Gun 2 | . . 7 10 11 19 . . . . . . Energy Cannon 5 | . . . . . . 8 6 15 13 10 2 Ballistic Gun 14 | . 20 14 11 11 2 17 20 13 13 15 9 Special Weapon 1 | . 3 . . . . . 1 . . . 3 Naked Turns . | . . . . . . . . . . . . Heaviest Build 172 | 7 96 112 172 93 94 119 128 128 141 141 163 Greatest Support 43 | 20 32 32 40 32 43 43 40 32 16 27 32 Greatest Overweight (x) 10 | . 5 6 5 2 9 9 7 7 8 8 10 Average Overweight (x) 4 | . 2 4 3 2 6 3 3 6 8 7 5 Largest Inventory Capacity 25 | 8 25 25 25 25 25 25 25 25 25 25 25 Average Capacity 24 | 6 22 25 25 25 25 25 25 25 25 25 24 Most Carried 25 | 8 21 25 25 25 25 25 25 25 23 25 25 Average Carried 23 | 6 15 23 22 24 24 24 24 24 23 24 23 Final Capacity 25 | 8 25 25 25 25 25 25 25 25 25 25 5 Final Carried 25 | 8 21 25 24 25 25 25 25 25 23 25 4 Class Distribution -------------------- 30% | Mutant 21% | Gunner 13% | Scavenger-Gunner 12% | Scavenger-Mutant 10% | Bothacker-Mutant 6% | Bothacker-Gunner Dominant Class ---------------- Mutant | -10/Materials Mutant | -9/Materials Scavenger-Mutant | -9/Mines Scavenger-Mutant | -9/Exiles Skirmisher | -8/Mines Gunner | -8/Materials Scavenger-Gunner | -7/Factory Gunner | -7/Garrison Bothacker-Gunner | -6/Factory Bothacker-Gunner | -6/DSF Bothacker-Mutant | -5/Factory Resources | -11 -10 -9 -9 -9 -8 -8 -7 -7 -6 -6 -5 ----------- Run | Jun Mat Mat Min Exi Min Mat Fac Gar Fac DSF Fac Matter Collected 6871 | 189 674 1095 269 . 65 1145 936 1031 . 221 1246 Remotely . | . . . . . . . . . . . . Salvage Created 7440 | . 388 1547 330 . 46 1360 1068 1149 . 393 1159 Parts 399 | . 27 93 12 . 2 86 58 62 . 12 47 Haulers Intercepted 3 | . . 3 . . . . . . . . . Recyclers Shooed 11 | . 1 3 . . . 2 1 . . . 4 Parts Field Recycled . | . . . . . . . . . . . . Retrieved Matter . | . . . . . . . . . . . . Parts Self-Destructed . | . . . . . . . . . . . . Prevented . | . . . . . . . . . . . . Kills | -11 -10 -9 -9 -9 -8 -8 -7 -7 -6 -6 -5 ------- Run | Jun Mat Mat Min Exi Min Mat Fac Gar Fac DSF Fac Combat Hostiles Destroyed 153 | . 8 27 10 . 1 33 23 23 . 8 20 Guns 95 | . 8 26 7 . 1 23 10 11 . 6 3 Cannons 47 | . . . . . . 10 8 12 . 2 15 AOE 10 | . . 1 3 . . . 5 . . . 1 Classes Destroyed 19 | . 6 4 2 . 1 3 2 . . . 1 Worker 11 | . 1 4 1 . . 3 . . . . 2 Builder 4 | . . . . . . 1 1 . . . 2 Tunneler 1 | . . . . . . . 1 . . . . Hauler 3 | . . 3 . . . . . . . . . Recycler 13 | . 1 2 2 . . 4 2 . . . 2 Operator 2 | . 1 1 . . . . . . . . . Watcher 8 | . 2 1 . . . 3 2 . . . . Swarmer 38 | . 3 . 4 . . 14 7 4 . 6 . Saboteur 1 | . . . . . . . . . . . 1 Grunt 62 | . 5 21 2 . . 11 7 7 . 1 8 Brawler 4 | . . 1 . . . 1 1 . . . 1 Duelist 5 | . . 1 . . . . 1 . . . 3 Sentry 14 | . . 4 . . . 5 2 3 . . . Demolisher 2 | . . . 2 . . . . . . . . Specialist 5 | . . . . . . 1 . 4 . . . Hunter 5 | . . . . . 1 . . 2 . . 2 Programmer 14 | . . . . . . . 5 4 . . 5 Heavy 2 | . . . . . . 1 . . . 1 . Assembled 2 | . . . 2 . . . . . . . . Best Kill Streak 8 | . 3 3 4 . 1 8 7 6 . 3 5 Combat Bots Only 6 | . 3 3 4 . 1 6 5 6 . 3 4 Max Kills in Single Turn 3 | . 2 1 3 . 1 2 2 1 . 2 1 Gunslinging . | . . . . . . . . . . . . Exploded 3 | . . 1 3 . . . 2 . . . 1 Melee . | . . . . . . . . . . . . Uniques/NPCs Destroyed . | . . . . . . . . . . . . Combat | -11 -10 -9 -9 -9 -8 -8 -7 -7 -6 -6 -5 -------- Run | Jun Mat Mat Min Exi Min Mat Fac Gar Fac DSF Fac Damage Taken 11725 | . 526 1179 1033 . 105 1261 1211 932 . 271 5207 Core 1895 | . 134 161 165 . 23 136 104 134 . 24 1014 Absorbed by Shields 965 | . . . . . . 124 288 305 . 98 150 Redirected to Shielding 16 | . . . . . . . . 16 . . . Regen/Repaired (Parts) 141 | . 85 56 . . . . . . . . . Core Remaining (%) 66 | 100 46 . . . 12 75 . 66 . 97 . Volleys Fired 515 | . 52 98 33 . 3 85 51 69 . 16 108 Largest 4 | . 2 2 2 . 2 3 4 4 . 4 4 Hottest 188 | . 100 76 85 . 130 136 159 118 . 118 188 Shots Fired 1229 | . 86 196 64 . 4 211 174 213 . 62 219 Gun 804 | . 79 194 62 . 4 130 126 98 . 35 76 Cannon 349 | . . . . . . 80 37 98 . 27 107 Launcher 18 | . . 2 2 . . . 11 . . . 3 Special 58 | . 7 . . . . 1 . 17 . . 33 Kinetic 777 | . 79 129 36 . . 130 126 98 . 35 144 Thermal 384 | . 7 65 26 . 4 81 37 98 . 27 39 Explosive 18 | . . 2 2 . . . 11 . . . 3 Electromagnetic . | . . . . . . . . . . . . Robot Hit Streak 25 | . 16 15 12 . 3 22 24 25 . 7 14 Robot Miss Streak 6 | . 3 4 3 . 2 6 4 3 . 2 3 Penetration Max 1 | . . . . . . . 1 1 . . 1 Secondary Targets 4 | . 1 3 . . . . . . . . . Max Gunslinging Chain 1 | . 1 1 . . . . . . . . . Shots Hit Robots 763 | . 52 135 39 . 3 143 109 112 . 32 138 Core Hits 425 | . 24 60 21 . 2 140 66 42 . 14 56 Critical Kills 4 | . . . . . . . 1 1 . . 2 Critical Parts Destroyed 4 | . . . . . . . 1 2 . 1 . Critical Strikes 28 | . . 5 2 . 1 . 2 3 . 1 14 Burn 8 | . . 5 2 . 1 . . . . . . Meltdown 1 | . . . . . . . . . . . 1 Destroy 7 | . . . . . . . 2 3 . 1 1 Blast 12 | . . . . . . . . . . . 12 Melee Attacks 4 | . . . . . . . . . . . 4 Impact 4 | . . . . . . . . . . . 4 Slashing . | . . . . . . . . . . . . Piercing . | . . . . . . . . . . . . Sneak Attacks . | . . . . . . . . . . . . Combat Hostiles . | . . . . . . . . . . . . Follow-up Attacks . | . . . . . . . . . . . . Damage Inflicted 17426 | . 738 2042 715 . 49 3204 3149 2534 . 813 4182 Guns 8997 | . 714 1871 497 . 49 1859 1524 911 . 409 1163 Cannons 6628 | . . . . . . 1327 887 1522 . 404 2488 Explosions 1721 | . . 167 218 . . . 738 101 . . 497 Melee . | . . . . . . . . . . . . Ramming 44 | . . 4 . . . 6 . . . . 34 Kinetic 9665 | . 714 1066 244 . . 1859 1524 911 . 409 2938 Thermal 6036 | . 24 805 293 . 49 1339 887 1522 . 404 713 Explosive 1681 | . . 167 178 . . . 738 101 . . 497 Electromagnetic . | . . . . . . . . . . . . Impact . | . . . . . . . . . . . . Slashing . | . . . . . . . . . . . . Piercing . | . . . . . . . . . . . . Highest Corruption 12 | . 3 . . . . . 5 6 . . 12 Average Corruption 4 | . 2 . . . . . 2 5 . . 8 Corruption Purged . | . . . . . . . . . . . . Corruption Blocked . | . . . . . . . . . . . . Effects 180 | . 14 . . . . . 32 76 . . 58 Message Errors 43 | . 3 . . . . . 9 20 . . 11 Matter Fused 44 | . 3 . . . . . 8 19 . . 14 Heat Flow Errors 17 | . . . . . . . 2 7 . . 8 Energy Discharges 17 | . 2 . . . . . 2 5 . . 8 Parts Rejected 1 | . . . . . . . . . . . 1 Parts Fused 2 | . 1 . . . . . . 1 . . . Data Loss (minor) 19 | . 2 . . . . . 3 10 . . 4 Data Loss (major) 10 | . . . . . . . 2 6 . . 2 Misfires 14 | . . . . . . . 2 5 . . 7 Alerts 5 | . 2 . . . . . 2 . . . 1 Weapon Failures 8 | . 1 . . . . . 2 3 . . 2 Overload Shots . | . . . . . . . . . . . . Overflow Damage 289 | . . . 5 . . 15 26 24 . . 219 Projectiles 258 | . . . . . . 15 . 24 . . 219 Explosions 31 | . . . 5 . . . 26 . . . . Melee . | . . . . . . . . . . . . Knockbacks 16 | . . . . . . . . . . . 16 Impact . | . . . . . . . . . . . . Kinetic 15 | . . . . . . . . . . . 15 Secondary 1 | . . . . . . . . . . . 1 Self-Inflicted Damage 421 | . . 2 . . . 2 257 121 . . 39 Shots 9 | . . . . . . . 7 1 . . 1 Rammed 4 | . . 1 . . . 2 . . . . 1 Targets Rammed 4 | . . 1 . . . 2 . . . . 1 Kicked . | . . . . . . . . . . . . Crushed . | . . . . . . . . . . . . Highest Temperature 667 | . 80 263 141 . 81 508 236 270 . 558 667 Average Temperature 94 | . 15 69 50 . 37 120 29 63 . 146 151 Received Heat Transfer 2436 | . 264 444 188 . . 345 128 273 . 24 770 Effects 31 | . . . . . . 11 . 1 . 5 14 Shutdowns 5 | . . . . . . 1 . . . 1 3 Energy Bleed 2 | . . . . . . 1 . . . 1 . Interference 8 | . . . . . . 3 . 1 . . 4 Matter Decay 2 | . . . . . . 1 . . . 1 . Short Circuit 2 | . . . . . . 1 . . . . 1 Damage (minor) 3 | . . . . . . . . . . 2 1 Damage (major) 7 | . . . . . . 4 . . . . 3 Damage (core) 2 | . . . . . . . . . . . 2 Siege Activations . | . . . . . . . . . . . . Robots Corrupted . | . . . . . . . . . . . . Combat Hostiles . | . . . . . . . . . . . . Parts Fried . | . . . . . . . . . . . . Impact Corruptions . | . . . . . . . . . . . . Robots Melted 1 | . . . . . . . . . . . 1 Combat Hostiles 1 | . . . . . . . . . . . 1 Parts Melted 13 | . . 4 2 . 1 2 3 1 . . . Heat Transferred 10574 | . 50 2183 790 . 185 2587 1184 1998 . 555 1042 Parts Sabotaged . | . . . . . . . . . . . . Parts Stolen . | . . . . . . . . . . . . Parts Stripped . | . . . . . . . . . . . . Power Chain Reactions . | . . . . . . . . . . . . Missiles Intercepted . | . . . . . . . . . . . . Alert | -11 -10 -9 -9 -9 -8 -8 -7 -7 -6 -6 -5 ------- Run | Jun Mat Mat Min Exi Min Mat Fac Gar Fac DSF Fac Peak Influence 1917 | . 240 327 363 . 30 524 472 1917 1005 896 807 Initial 1005 | . . 42 127 . . 11 238 291 1005 703 470 Average 387 | . 92 195 206 . 22 119 268 916 1005 782 476 Maximum Alert Level 5 | . 1 1 1 . . 2 2 5 3 3 3 Low Security (%) 34 | 100 88 40 43 . 100 81 25 . . . 3 Level 1 34 | . 11 59 56 . . 7 67 14 . . 42 Level 2 12 | . . . . . . 11 6 29 . 1 29 Level 3 12 | . . . . . . . . 23 100 98 24 Level 4 3 | . . . . . . . . 19 . . . Level 5 2 | . . . . . . . . 12 . . . High Security . | . . . . . . . . . . . . Max Security . | . . . . . . . . . . . . Sterilizations 1 | . . . . . . . . . . 1 . Squads Dispatched 29 | . 1 2 . . . 9 9 . . 2 6 Investigation 2 | . 1 1 . . . . . . . . . Extermination 6 | . . . . . . . 4 . . . 2 Reinforcement 11 | . . 1 . . . 5 1 . . 2 2 Assault 2 | . . . . . . . . . . . 2 Garrison 8 | . . . . . . 4 4 . . . . Intercept . | . . . . . . . . . . . . Searches Triggered . | . . . . . . . . . . . . Construction Impeded 1 | . . . . . . 1 . . . . . Haulers Reinforced 1 | . . . . . . . . . . . 1 Active Scanning Responses . | . . . . . . . . . . . . Cargo Convoy Interrupts . | . . . . . . . . . . . . Stealth | -11 -10 -9 -9 -9 -8 -8 -7 -7 -6 -6 -5 --------- Run | Jun Mat Mat Min Exi Min Mat Fac Gar Fac DSF Fac Distress Signals 12 | . . 4 . . . 7 . . . . 1 Communications Jammed 5 | . . . . . . . . . . . 5 Distress Signals 4 | . . . . . . . . . . . 4 Times Spotted 252 | . 15 51 27 . 1 50 29 26 . 9 44 Peak Tracking Total 14 | . 4 5 14 . 1 5 4 4 . 3 9 Tactical Retreats 10 | . 1 3 2 . . 2 . 1 . . 1 Traps | -11 -10 -9 -9 -9 -8 -8 -7 -7 -6 -6 -5 ------- Run | Jun Mat Mat Min Exi Min Mat Fac Gar Fac DSF Fac Traps Triggered 25 | . 3 . . . . . 4 15 . 3 . Indirectly . | . . . . . . . . . . . . Trap Hack Attempts . | . . . . . . . . . . . . Triggered . | . . . . . . . . . . . . Disarmed . | . . . . . . . . . . . . Reprogrammed . | . . . . . . . . . . . . Reused . | . . . . . . . . . . . . Traps Extracted . | . . . . . . . . . . . . Installed . | . . . . . . . . . . . . Triggered . | . . . . . . . . . . . . Machines | -11 -10 -9 -9 -9 -8 -8 -7 -7 -6 -6 -5 ---------- Run | Jun Mat Mat Min Exi Min Mat Fac Gar Fac DSF Fac Machines Disabled 36 | . 2 . 14 . . 1 2 6 . 2 9 Max in Single Turn 14 | . 1 . 14 . . 1 1 2 . 1 1 Garrison Access 1 | . . . . . . . . . . . 1 Garrison Relay 4 | . . . . . . . . 4 . . . Phase Generator 1 | . . . . . . . . 1 . . . Machines Repaired . | . . . . . . . . . . . . Machines Sabotaged . | . . . . . . . . . . . . Overloaded Fab Kills . | . . . . . . . . . . . . Hacking | -11 -10 -9 -9 -9 -8 -8 -7 -7 -6 -6 -5 --------- Run | Jun Mat Mat Min Exi Min Mat Fac Gar Fac DSF Fac Machines Accessed 29 | . 7 9 . 2 . 5 2 1 1 . 2 Terminals 21 | . 6 6 . . . 5 1 1 1 . 1 Fabricators . | . . . . . . . . . . . . Repair Stations 2 | . 1 1 . . . . . . . . . Recycling Units 1 | . . 1 . . . . . . . . . Scanalyzers 1 | . . 1 . . . . . . . . . Garrison Access 2 | . . . . . . . 1 . . . 1 Total Hacks 76 | . 23 22 . 11 . 12 3 1 1 . 3 Successful 48 | . 15 10 . 11 . 5 2 1 1 . 3 Failed 28 | . 8 12 . . . 7 1 . . . . Catastrophic 5 | . . 5 . . . . . . . . . Database Lockouts . | . . . . . . . . . . . . Manual 34 | . 13 13 . 1 . 4 3 . . . . Terminals 53 | . 21 15 . . . 12 2 1 1 . 1 Fabricators . | . . . . . . . . . . . . Repair Stations 4 | . 2 2 . . . . . . . . . Recycling Units 2 | . . 2 . . . . . . . . . Scanalyzers 3 | . . 3 . . . . . . . . . Garrison Access 3 | . . . . . . . 1 . . . 2 Terminal Hacks 27 | . 7 1 . 11 . 4 1 1 1 . 1 Record 10 | . . . . 10 . . . . . . . Robot Analysis 2 | . 2 . . . . . . . . . . Prototype ID Bank 3 | . 2 1 . . . . . . . . . Open DSF 1 | . . . . . . . . . 1 . . Emergency Access Points 2 | . 1 . . . . . . 1 . . . Terminal Index 1 | . 1 . . . . . . . . . . Alert Level 1 | . . . . . . . 1 . . . . Unreport Threat 2 | . 1 . . . . 1 . . . . . Locate Traps 2 | . . . . . . 2 . . . . . Maintenance Status 1 | . . . . . . . . . . . 1 Hauler Manifests 1 | . . . . . . 1 . . . . . EX-Prototype ID Bank 1 | . . . . 1 . . . . . . . Fabricator Hacks . | . . . . . . . . . . . . Repair Station Hacks 4 | . 2 2 . . . . . . . . . Scan Component 2 | . 1 1 . . . . . . . . . Repair 2 | . 1 1 . . . . . . . . . Recycling Unit Hacks . | . . . . . . . . . . . . Scanalyzer 3 | . . 3 . . . . . . . . . Insert Component 1 | . . 1 . . . . . . . . . Analyze 2 | . . 2 . . . . . . . . . Garrison Access Hacks 3 | . . . . . . . 1 . . . 2 Unlock Access 2 | . . . . . . . 1 . . . 1 Coupler Status 1 | . . . . . . . . . . . 1 Unauthorized Hacks 11 | . 6 4 . . . 1 . . . . . Terminals 9 | . 6 2 . . . 1 . . . . . Assimilate 5 | . 3 1 . . . 1 . . . . . Botnet 2 | . 2 . . . . . . . . . . Operators 2 | . 1 1 . . . . . . . . . Fabricators . | . . . . . . . . . . . . Repair Stations . | . . . . . . . . . . . . Recycling Units 2 | . . 2 . . . . . . . . . Reject 1 | . . 1 . . . . . . . . . Mask 1 | . . 1 . . . . . . . . . Scanalyzers . | . . . . . . . . . . . . Garrison Access . | . . . . . . . . . . . . Data Cores Recovered . | . . . . . . . . . . . . Used . | . . . . . . . . . . . . Hacking Detections 24 | . 7 8 . . . 3 3 1 . . 2 Full Trace Events 1 | . . 1 . . . . . . . . . Feedback Events . | . . . . . . . . . . . . Feedback Blocked . | . . . . . . . . . . . . Robot Schematics Acquired . | . . . . . . . . . . . . Robots Built . | . . . . . . . . . . . . Authchips . | . . . . . . . . . . . . Time . | . . . . . . . . . . . . Total Robot Build Rating . | . . . . . . . . . . . . Part Schematics Acquired 1 | . . 1 . . . . . . . . . Parts Built . | . . . . . . . . . . . . Authchips . | . . . . . . . . . . . . Time . | . . . . . . . . . . . . Total Part Build Rating . | . . . . . . . . . . . . Parts Repaired 2 | . 1 1 . . . . . . . . . Time 58 | . 26 32 . . . . . . . . . Parts Recycled . | . . . . . . . . . . . . Recycled Matter . | . . . . . . . . . . . . Retrieved Matter . | . . . . . . . . . . . . Retrieved Components . | . . . . . . . . . . . . Parts Scanalyzed 1 | . . 1 . . . . . . . . . Part Schematics Acquired 1 | . . 1 . . . . . . . . . Parts Damaged . | . . . . . . . . . . . . Bothacking | -11 -10 -9 -9 -9 -8 -8 -7 -7 -6 -6 -5 ------------ Run | Jun Mat Mat Min Exi Min Mat Fac Gar Fac DSF Fac Used RIF Installer 1 | . . . . . . . . 1 . . . Robots Hacked 20 | . . . . . . . . . . . 20 Non-combat 12 | . . . . . . . . . . . 12 Combat 8 | . . . . . . . . . . . 8 Robot Hacks Applied 21 | . . . . . . . . . . . 21 no_distress 1 | . . . . . . . . . . . 1 generate_echo 2 | . . . . . . . . . . . 2 find_chute 2 | . . . . . . . . . . . 2 map_walls 2 | . . . . . . . . . . . 2 map_earth 3 | . . . . . . . . . . . 3 drop_inventory 1 | . . . . . . . . . . . 1 locate_stockpiles 1 | . . . . . . . . . . . 1 find_recycling 1 | . . . . . . . . . . . 1 scatter_targeting 1 | . . . . . . . . . . . 1 overload_power 3 | . . . . . . . . . . . 3 formatsys_high 4 | . . . . . . . . . . . 4 Relay Couplers Released 19 | . . . . . . . . 14 . . 5 Machine Destruction 15 | . . . . . . . . 14 . . 1 Programmers 4 | . . . . . . . . . . . 4 Attached 5 | . . . . . . . . 2 . . 3 Fabnet Peak Effective % . | . . . . . . . . . . . . Robots Rewired 4 | . . . . . . . . 4 . . . Allies Hacked . | . . . . . . . . . . . . Hacks Repelled . | . . . . . . . . . . . . Allies | -11 -10 -9 -9 -9 -8 -8 -7 -7 -6 -6 -5 -------- Run | Jun Mat Mat Min Exi Min Mat Fac Gar Fac DSF Fac Total Allies 15 | . 3 . 3 . . 1 . 4 . . 4 Largest Group 3 | . 3 2 3 2 2 1 . 3 2 2 3 Highest-Rated Group 235 | . 27 17 40 32 32 10 . 66 45 45 235 Highest-Rated Ally 137 | . 10 10 16 16 16 10 . 24 24 24 137 Total Orders 4 | . . 4 . . . . . . . . . STAY 2 | . . 2 . . . . . . . . . FOLLOW 2 | . . 2 . . . . . . . . . Ally Attacks 100 | . . . 15 . 8 . . 30 . 3 44 Total Damage 3349 | . . . 153 . 59 . . 826 . 62 2249 Kills 20 | . . . 2 . . . . 4 . 1 13 Allies Corrupted . | . . . . . . . . . . . . Allies Melted . | . . . . . . . . . . . . Intel | -11 -10 -9 -9 -9 -8 -8 -7 -7 -6 -6 -5 ------- Run | Jun Mat Mat Min Exi Min Mat Fac Gar Fac DSF Fac Robot Analysis Total 2 | . 2 . . . . . . . . . . Derelict Logs Recovered 2 | . . . 2 . . . . . . . . Drone Launches . | . . . . . . . . . . . . Drone Recoveries . | . . . . . . . . . . . . Exploration | -11 -10 -9 -9 -9 -8 -8 -7 -7 -6 -6 -5 ------------- Run | Jun Mat Mat Min Exi Min Mat Fac Gar Fac DSF Fac Turns Passed 15257 | 67 992 2169 1129 741 385 2133 2063 2751 96 452 2279 Spaces Moved 7552 | 41 553 1033 651 565 189 1074 1025 1177 44 150 1050 Core 14 | 9 . . . . . . . . . . 5 Treads 51 | 27 . . 1 . 2 12 1 5 . 3 . Legs 117 | 5 112 . . . . . . . . . . Wheels 7370 | . 441 1033 650 565 187 1062 1024 1172 44 147 1045 Hover . | . . . . . . . . . . . . Flight . | . . . . . . . . . . . . Fastest Speed 50 | 50 120 130 130 130 130 145 145 145 220 220 50 Average Speed 163 | 130 136 164 151 130 190 151 145 194 220 227 182 Slowest Speed 650 | 160 175 190 320 130 320 560 325 650 220 570 250 Overloaded Moves . | . . . . . . . . . . . . Propulsion Burnouts . | . . . . . . . . . . . . Robots Hopped . | . . . . . . . . . . . . Cave-ins Triggered . | . . . . . . . . . . . . Exploration Rate (%) 55 | 3 64 66 96 80 42 67 29 95 1 92 25 Regions Visited 11 Branch Regions 3 Pre-discovered Areas 1 | . . . 1 . . . . . . . . Known Exits Taken 4 | . . . . 1 1 . 1 . 1 . . Unknown Exits Taken 5 | 1 1 1 1 . . 1 . . . . . Scrap Searched 1 | . . . 1 . . . . . . . . Spaces Dug 30 | . 6 . . . . 16 5 1 . . 2 Terrain Destroyed 301 | . 6 4 63 . . 27 76 78 . . 47 Melee 1 | . . . . . . . . . . . 1 Projectile 64 | . 6 . . . . 27 . 4 . . 27 AOE 236 | . . 4 63 . . . 76 74 . . 19 Terrain Rammed . | . . . . . . . . . . . . Walls Destroyed . | . . . . . . . . . . . . Machines Disabled . | . . . . . . . . . . . . Actions | -11 -10 -9 -9 -9 -8 -8 -7 -7 -6 -6 -5 --------- Run | Jun Mat Mat Min Exi Min Mat Fac Gar Fac DSF Fac Total 9513 | 52 690 1304 730 571 210 1417 1500 1512 44 226 1257 Wait 794 | . 51 66 16 . 11 139 350 99 . 36 26 Move 7541 | 40 552 1032 650 564 188 1073 1024 1176 43 149 1050 Hop . | . . . . . . . . . . . . Pick Up 169 | 8 20 32 8 1 1 34 19 24 . 6 16 Fast Attach 19 | 4 1 . . 2 . 7 2 1 . . 2 Attach 71 | . 4 10 9 . 1 7 6 5 1 3 25 Detach 1 | . . 1 . . . . . . . . . Swap 153 | . 6 40 14 1 5 31 24 14 . 4 14 Drop 129 | . 4 24 . 2 1 39 24 20 . 4 11 Fire 515 | . 52 98 33 . 3 85 51 69 . 16 108 Melee 4 | . . . . . . . . . . . 4 Ram 4 | . . 1 . . . 2 . . . . 1 Kick . | . . . . . . . . . . . . Crush . | . . . . . . . . . . . . Escape Stasis 99 | . . . . . . . . 91 . 8 . Rewire 14 | . . . . 1 . . . 13 . . . Trap . | . . . . . . . . . . . . Miscellaneous . | . . . . . . . . . . . . Route ------- -11/Junkyard -10/Materials (discovered 4 exits: *Mat x2 / [*Min x2]) -9/Materials (discovered 3 exits: *Mat x2 / [*Min]) -9/Mines (discovered 3 exits: *Mat x2 / *Exi) -9/Exiles (discovered 2 exits: *Min x2) -8/Mines -8/Materials (discovered 3 exits: *Fac x3) -7/Factory (discovered 4 exits: *Fac / [*Sto] / [*Low] / Gar) -7/Garrison (discovered 3 exits: *Fac x3) -6/Factory -6/DSF -5/Factory (discovered 1 exit: Gar) History --------- Turn | Location | Event 5 | -11/Junkyard | Discovered new exit (range 16) 68 | -11/Junkyard | Entered Materials 97 | -10/Materials | Discovered new exit (range 14) 302 | -10/Materials | Build established: Mutant 520 | -10/Materials | Discovered new exit (range 9) 674 | -10/Materials | Discovered new exit (range 9) 691 | -10/Materials | Discovered new exit (range 9) 851 | -10/Materials | Core integrity fell below 50% 917 | -10/Materials | Repaired Assault Rifle 1060 | -10/Materials | Entered another Materials area 1060 | -9/Materials | Accompanied by 2 allies 1060 | -9/Materials | Evolved 2 slots: Utility x2 1820 | -9/Materials | Discovered new exit (range 12) 2664 | -9/Materials | Repaired Med. Armor Plating? 2733 | -9/Materials | Discovered new exit (range 16) 3001 | -9/Materials | Discovered new exit (range 16) 3229 | -9/Materials | Entered Mines 3229 | -9/Mines | Accompanied by 2 allies 3230 | -9/Mines | Assembled infested the area 3235 | -9/Mines | Assisted by a Guerilla fighting off Assembled 3292 | -9/Mines | Core integrity fell below 50% 3364 | -9/Mines | Lost 4 parts (1p3n) 3391 | -9/Mines | Deemed a non-threat by the Exiles lab entrance 3391 | -9/Mines | Discovered new exit (range 5) 3448 | -9/Mines | Learned location of Storage (-7) 3601 | -9/Mines | Discovered new exit (range 9) 3625 | -9/Mines | Build established: Scavenger-Mutant 3892 | -9/Mines | Learned Materials trap positions 3960 | -9/Mines | Discovered new exit (range 7) 3997 | -9/Mines | Assisted by bots powering up and referring to "LRC-V3" 4059 | -9/Mines | Core integrity fell below 20% 4358 | -9/Mines | Entered Exiles 4358 | -9/Exiles | Accompanied by 2 allies 4377 | -9/Exiles | Discovered new exit (range 15) 4403 | -9/Exiles | Met 8R-AWN 4426 | -9/Exiles | Met EX-HEX 4479 | -9/Exiles | Met EX-DEC 4591 | -9/Exiles | Met EX-BIN 4619 | -9/Exiles | Aligned with FarCom system 4621 | -9/Exiles | Given EX-Vault access code 4679 | -9/Exiles | Opened EX-Vault 4726 | -9/Exiles | Found Superbattery 4753 | -9/Exiles | Warned to stay clear of 0b10 Research branches 4944 | -9/Exiles | Visited The Gauntlet 5084 | -9/Exiles | Discovered new exit (range 12) 5098 | -9/Exiles | Identified exit to Mines 5099 | -9/Exiles | Left Exiles lab with Superbattery 5099 | -9/Exiles | Entered Mines 5099 | -8/Mines | Accompanied by 2 allies 5367 | -8/Mines | Discovered new exit (range 13) 5391 | -8/Mines | Identified exit to Materials 5484 | -8/Mines | Entered Materials 5484 | -8/Materials | Evolved 2 slots: Utility x1, Weapon x1 5485 | -8/Materials | Loaded intel: 28 trap records 6054 | -8/Materials | Garrison activated, responded to threat 6295 | -8/Materials | Discovered new exit (range 7) 6539 | -8/Materials | Build established: Gunner 7031 | -8/Materials | Discovered new exit (range 5) 7232 | -8/Materials | Garrison activated, responded to threat 7566 | -8/Materials | Discovered new exit (range 8) 7617 | -8/Materials | Entered Factory 7617 | -7/Factory | Evolved 2 slots: Utility x1, Weapon x1 8019 | -7/Factory | Build established: Scavenger-Gunner 8053 | -7/Factory | Garrison activated, responded to threat 8267 | -7/Factory | Discovered new exit (range 7) 8385 | -7/Factory | Discovered new exit (range 5) 8798 | -7/Factory | Discovered new exit (range 16) 9336 | -7/Factory | Garrison activated, responded to threat 9412 | -7/Factory | Identified exit to Garrison 9680 | -7/Factory | Entered Garrison 9998 | -7/Garrison | Triggered checkpoint 10015 | -7/Garrison | Build established: Gunner 10088 | -7/Garrison | Triggered checkpoint 10088 | -7/Garrison | Triggered checkpoint 10477 | -7/Garrison | Discovered new exit (range 14) 10676 | -7/Garrison | Triggered checkpoint 10842 | -7/Garrison | Triggered checkpoint 10937 | -7/Garrison | Garrison Relay disabled 10982 | -7/Garrison | Discovered new exit (range 14) 11019 | -7/Garrison | Installed Relay Interface Framework 11293 | -7/Garrison | Garrison Relay disabled 11539 | -7/Garrison | Phase Generator disabled 11543 | -7/Garrison | Discovered new exit (range 12) 11660 | -7/Garrison | Build established: Mutant 11770 | -7/Garrison | Triggered checkpoint 11899 | -7/Garrison | Garrison Relay disabled 12070 | -7/Garrison | Triggered checkpoint 12082 | -7/Garrison | Build established: Gunner 12237 | -7/Garrison | Garrison Relay disabled 12431 | -7/Garrison | Entered Factory 12431 | -6/Factory | Accompanied by 2 allies 12431 | -6/Factory | Evolved 2 slots: Utility x2 12452 | -6/Factory | Build established: Bothacker-Gunner 12503 | -6/Factory | Identified exit to DSF 12527 | -6/Factory | Entered DSF 12527 | -6/DSF | Accompanied by 2 allies 12634 | -6/DSF | Additional patrols routed to DSF 12884 | -6/DSF | Sterilization system engaged 12904 | -6/DSF | Ambient heat levels rising (+10) 12919 | -6/DSF | Ambient heat levels rising (+10) 12919 | -6/DSF | Discovered new exit (range 14) 12934 | -6/DSF | Ambient heat levels rising (+10) 12949 | -6/DSF | Ambient heat levels rising (+10) 12964 | -6/DSF | Ambient heat levels rising (+10) 12979 | -6/DSF | Ambient heat levels rising (+10) 12979 | -6/DSF | Entered Factory 12979 | -5/Factory | Evolved 2 slots: Utility x2 13230 | -5/Factory | Identified exit to Garrison 13502 | -5/Factory | Build established: Bothacker-Mutant 14003 | -5/Factory | Lost 3 parts (1u2w) 14144 | -5/Factory | Lost 5 parts (5u) 15019 | -5/Factory | System corruption reached 10% 15079 | -5/Factory | First assault squad dispatched 15094 | -5/Factory | Lost 7 parts (1p2n1u3w) 15220 | -5/Factory | Core integrity fell below 50% 15252 | -5/Factory | Core integrity fell below 20% 15258 | -5/Factory | Destroyed by H-66 Slayer with Heavy Assault Rifle Last Messages --------------- 15246_ System corrupted: Energy discharge (-13). 15246_ Acquired 6 matter. 15246_ K-01 Serf collects debris. 15247_ M-28 Smith repairs H-66 Slayer. 15247_ Penetrated by Slug. 15247_ Acquired 22 matter. 15247_ R-10 Processor collects Carbon-fiber Leg. 15248_ Slug penetrates Wall. 15249_ M-28 Smith repairs Lgt. Fission Core. 15250_ K-01 Serf collects debris. 15252_ Slug penetrates Wall. 15252_ Penetrated by Slug. 15252_ Acquired 48 matter. 15253_ K-01 Serf collects debris. 15253_ Critical hit (Burn: +37). 15254_ R-10 Processor collects Structural Scanner. 15255_ Penetrated by Slug. 15256_ Relay Coupler [Grunt] destroyed. 15258_ K-01 Serf collects debris. 15258_ Penetrated by Slug. Map ----- +----------------------------------------------------+ | ?????????????????????????????????????????????????? | | ?????????????????????????????????????????????????? | | ?????????????????????????????????????????????????? | | ??????????????????????????????????????????? ???? | | ??????????????????????????????????????????? ?? | | ???????????????????????????? ????????????# #? | | ???????????????????????????+ ???????????# #? | | ?????????????????????????o?# ???????????# #? | | ???????????????????????????# ???????????# #? | | ??????????????!????????????# ???????????# #? | | ??????????????????????? ???# ???????????# #? | | ????????????????????? ???# #??????????+ #? | | ?????????????????? ??# #??????????# #? | | ?????????????????? ##; ###????????# #? | | ?????????????????? # #????????# ## | | ????????????Y????"" # ######+### | | ???????????????"""" ^ # "" % | | ????????????????""" + T * | | ????????????????? # | | ??????????????????" # ########## | | ??????????????????? | %##???????######## | | ?????????????????#### # =%!# ######?????## *= | | ?????????????????# R # ??????# *= | | ?????????????????# g% h ""??????# *= | | ?????????????????# h k ""??????# | | ?????????????????# @m ""??????# | | ?????????????????# %% # ?????# | | ?????????????????# %[ #?????????????# | | ?????????????????# *! #?????????????# "T | | ?????????????????# %! ! #?????????????# "" | | ?????????????????# %!!!!# +?????????????#### | | ?????????????????########## #????????????????? | | ??????????????????????????# #????????????????? | | ??????????????????????????# #????????????????? | | ?????????????????????????? #????????????????? | | ??????????????????????????###+###????????????????? | | ?????????????????????????????????????????????????? | | ?????????????????????????????????????????????????? | | ?????????????????????????????????????????????????? | | ?????????????????????????????????????????????????? | | ?????????????????????????????????????????????????? | | ?????????????????????????????????????????????????? | | ?????????????????????????????????????????????????? | | ?????????????????????????????????????????????????? | | ?????????????????????????????????????????????????? | | ?????????????????????????????????????????????????? | | | | | | | | | +----------------------------------------------------+ Best States ------------- Heat Dissipation 67 Energy Generation 18 Energy Capacity 310 Matter Stores 300 Matter Capacity 300 Sight Range 16 Robot Scan Range 14 Terrain Scan Density 85 Jamming Range 12 Armor Coverage 900 Resistance: KI 30 Resistance: TH 10 Resistance: EX 25 Utility Shielding 33 Phase Shifting 5 Evasion (%) 55 Targeting Accuracy 14 Recoil Reduction 5 Kinecelleration 30 Relay Coupler Types 3 Relay Coupler Value 76 Authchip Count 1 Item Schematics ----------------- Hacking Suite | -9/Materials | Scanalyzed Robot Schematics ------------------ None Fabricated ------------ Nothing Alien Tech Used ----------------- None Achievements -------------- Assimilation Complete Error 47 It Was An Accident, I Swear More Dakka Please Challenges ------------ None Game ------ Seed StormDeliveryPropulsion Manual? 0 Play Time 03:08:34 Cumulative 104.0 hours Start 2023.05.07 @ 14:20:45 End 2023.05.09 @ 15:04:15 Sessions 3 Manual Loads 0 Difficulty Rogue Special Mode None Game No. 29 Rogue 29 Adventurer 0 Explorer 0 Win Type - Total 4 Types 4/0/0/0/0/0/0/0/0 Lore% 30 Gallery% 49 Achievement% 41 Wizard Run 0 Options --------- ASCII 0 Keyboard 0 Movement Mouse Keybinds 0 Fullscreen 2 Font 16/SmallcapsGlow Map View 75x55 Tactical HUD 1 Map Filters NONE Filters NONE Steam 1 RUN: c1ab797a-e0b5-4371-8701-1ce7b94db43e